Cogmind - Beta 10 @@@ ROGUE MODE // 2020.09.14 @ 18:06:32 Player: Plexion Result: Self-destructed Performance ------------- Evolutions (1) 500 Regions Visited (3) 600 Robots Destroyed (54) 270 Value Destroyed (1228) 1228 Prototype IDs (0) 0 Alien Tech Used (0) 0 Bonus (-8) -8 TOTAL SCORE: 2590 Bonus ------- Friendly Fire -8 Cogmind --------- Core Integrity 253/400 Matter 1/300 Energy 265/265 System Corruption 0% Temperature Cool (0) Movement Treading (160) Location -9/Materials Parts ------- > --- POWER (1) -------- Improved Ion Engine > --- PROPULSION (2) --- Light Treads Light Treads > --- UTILITY (4) ------ Small Storage Unit Medium Storage Unit Advanced Sensor Array Light Armor Plating > --- WEAPON (2) ------- Heavy Assault Rifle Rocket Launcher > --- INVENTORY (10) --- Light Treads Light Treads Light Treads Hacking Suite Light Assault Rifle Light Assault Rifle Heavy Assault Rifle Heavy Assault Rifle Hammer Peak State ------------ > --- POWER ------------ Light Nuclear Core > --- PROPULSION ------- Light Treads Light Treads > --- UTILITY ---------- Small Storage Unit Medium Storage Unit Advanced Sensor Array Light Armor Plating > --- WEAPON ----------- Heavy Assault Rifle Heavy Assault Rifle > --- INVENTORY -------- Improved Ion Engine Light Treads Light Treads Hacking Suite EM Pulse Gun Light Assault Rifle Light Assault Rifle Rocket Launcher Hammer [Rating: 16] Favorites ----------- Power Ion Engine Engine Ion Engine Power Core Light Nuclear Core Propulsion Light Treads Treads Light Treads Utility Small Storage Unit Device Advanced Sensor Array Storage Small Storage Unit Protection Light Armor Plating Weapon Light Assault Rifle Energy Gun EM Pulse Gun Ballistic Gun Light Assault Rifle Launcher Rocket Launcher Impact Weapon Hammer Build | -11 -10 -10 -9 ------- Run | Scr Mat Min Mat Slots Evolved 2 | . . . 2 Power . | . . . . Propulsion . | . . . . Utility 2 | . . . 2 Weapon . | . . . . Parts Attached 44 | 6 7 6 25 Power 5 | 1 1 1 2 Engine 4 | 1 1 1 1 Core 1 | . . . 1 Reactor . | . . . . Propulsion 10 | 2 1 . 7 Treads 10 | 2 1 . 7 Leg . | . . . . Wheel . | . . . . Hover . | . . . . Flight . | . . . . Utility 10 | 1 1 . 8 Device 3 | . . . 3 Storage 2 | 1 1 . . Processor . | . . . . Hackware . | . . . . Protection 5 | . . . 5 Artifact . | . . . . Weapon 19 | 2 4 5 8 Energy Gun 5 | 2 1 2 . Energy Cannon . | . . . . Ballistic Gun 10 | . 2 2 6 Ballistic Cannon . | . . . . Launcher 3 | . . 1 2 Special Weapon . | . . . . Impact Weapon 1 | . 1 . . Slashing Weapon . | . . . . Piercing Weapon . | . . . . Special Melee Weapon . | . . . . Unidentified Prototypes . | . . . . Parts Lost 9 | . 1 1 7 Power 2 | . . . 2 Propulsion 2 | . . . 2 Utility 1 | . . . 1 Weapon 4 | . 1 1 2 Highest Loss Streak 2 | . 1 1 2 Average Slot Usage (%) 96 | . 94 100 95 Engine 10 | . 14 14 4 Core 1 | . . . 5 Treads 25 | . 28 28 22 Device 3 | . . . 8 Storage 24 | . 23 28 22 Protection 3 | . . . 10 Energy Gun 4 | . 9 2 . Ballistic Gun 20 | . 18 25 20 Naked Turns . | . . . . Heaviest Build 30 | 12 20 24 30 Greatest Support 40 | 40 40 40 40 Greatest Overweight (x) . | . . . . Average Overweight (x) . | . . . . Largest Inventory Capacity 10 | 6 10 10 10 Average Capacity 9 | 4 8 10 10 Most Carried 10 | 2 10 10 10 Average Carried 7 | . 5 8 8 Final Capacity 10 | 6 10 10 10 Final Carried 10 | 2 10 9 9 Class Distribution -------------------- 66% | Mutant 33% | Scavenger-Mutant Dominant Class ---------------- Mutant | -10/Materials Mutant | -10/Mines Scavenger-Mutant | -9/Materials Resources | -11 -10 -10 -9 ----------- Run | Scr Mat Min Mat Matter Collected 927 | 187 193 110 437 Remotely . | . . . . Salvage Created 1572 | . 552 161 859 Parts 115 | . 22 15 78 Haulers Intercepted 3 | . 1 . 2 Recyclers Shooed . | . . . . Parts Field Recycled . | . . . . Retrieved Matter . | . . . . Parts Self-Destructed . | . . . . Prevented . | . . . . Kills | -11 -10 -10 -9 ------- Run | Scr Mat Min Mat Combat Hostiles Destroyed 41 | . 10 9 22 Guns 32 | . 10 6 16 AOE 9 | . . 3 6 Classes Destroyed 9 | . 5 . 4 Worker 1 | . . . 1 Builder 5 | . . . 5 Tunneler 1 | . . . 1 Hauler 3 | . 1 . 2 Recycler 1 | . 1 . . Operator 2 | . 1 . 1 Swarmer 16 | . 2 7 7 Grunt 19 | . 8 2 9 Sentry 6 | . . . 6 Best Kill Streak 10 | . 4 5 10 Combat Bots Only 5 | . 4 5 4 Max Kills in Single Turn 4 | . 1 3 4 Gunslinging . | . . . . Exploded 3 | . . 3 2 Melee . | . . . . Uniques/NPCs Destroyed . | . . . . Combat | -11 -10 -10 -9 -------- Run | Scr Mat Min Mat Damage Taken 2100 | . 549 257 1294 Core 239 | . 55 37 147 Absorbed by Shields . | . . . . Core Remaining (%) 81 | 100 . 63 . Volleys Fired 165 | . 44 19 102 Largest 2 | . 2 2 2 Hottest 90 | . 90 60 60 Shots Fired 304 | . 87 36 181 Gun 294 | . 87 35 172 Cannon . | . . . . Launcher 10 | . . 1 9 Special . | . . . . Kinetic 265 | . 60 34 171 Thermal 20 | . 20 . . Explosive 10 | . . 1 9 Electromagnetic 9 | . 7 1 1 Robot Hit Streak 20 | . 20 15 12 Robot Miss Streak 6 | . 3 6 3 Penetration Max . | . . . . Secondary Targets 5 | . 3 2 . Max Gunslinging Chain 1 | . 1 1 . Shots Hit Robots 208 | . 63 20 125 Core Hits 101 | . 28 17 56 Critical Hits 4 | . . . 4 Critical Kills . | . . . . Critical Parts Destroyed 4 | . . . 4 Melee Attacks 2 | . 2 . . Impact 2 | . 2 . . Slashing . | . . . . Piercing . | . . . . Sneak Attacks . | . . . . Combat Hostiles . | . . . . Follow-up Attacks . | . . . . Damage Inflicted 3469 | . 593 352 2524 Guns 2349 | . 593 187 1569 Cannons . | . . . . Explosions 1109 | . . 165 944 Melee . | . . . . Ramming 11 | . . . 11 Kinetic 2120 | . 387 174 1559 Thermal 133 | . 133 . . Explosive 1109 | . . 165 944 Electromagnetic 96 | . 73 13 10 Impact . | . . . . Slashing . | . . . . Piercing . | . . . . Highest Corruption . | . . . . Average Corruption . | . . . . Corruption Purged . | . . . . Overload Shots . | . . . . Overflow Damage 43 | . . . 43 Projectiles . | . . . . Explosions 43 | . . . 43 Melee . | . . . . Knockbacks . | . . . . Impact . | . . . . Kinetic . | . . . . Secondary . | . . . . Self-Inflicted Damage 101 | . . . 101 Shots 3 | . . . 3 Rammed 2 | . . . 2 Targets Rammed 2 | . . . 2 Kicked . | . . . . Crushed . | . . . . Highest Temperature 180 | . 180 55 24 Average Temperature 27 | . 49 22 7 Received Heat Transfer 765 | . 234 90 441 Siege Activations . | . . . . Robots Corrupted . | . . . . Combat Hostiles . | . . . . Parts Fried . | . . . . Impact Corruptions . | . . . . Robots Melted . | . . . . Combat Hostiles . | . . . . Parts Melted . | . . . . Heat Transferred 324 | . 324 . . Parts Sabotaged . | . . . . Parts Stolen . | . . . . Parts Stripped . | . . . . Power Chain Reactions . | . . . . Missiles Intercepted . | . . . . Alert | -11 -10 -10 -9 ------- Run | Scr Mat Min Mat Peak Influence 252 | . 150 165 252 Initial 5 | . . . 5 Average 73 | . 62 29 124 Maximum Alert Level 1 | . . . 1 Low Security (%) 91 | 100 100 100 75 Level 1 8 | . . . 24 Level 2 . | . . . . Level 3 . | . . . . Level 4 . | . . . . Level 5 . | . . . . High Security . | . . . . Max Security . | . . . . Squads Dispatched 6 | . 1 . 5 Investigation 1 | . 1 . . Extermination . | . . . . Reinforcement 5 | . . . 5 Assault . | . . . . Garrison . | . . . . Intercept . | . . . . Construction Impeded 1 | . . . 1 Haulers Reinforced . | . . . . Stealth | -11 -10 -10 -9 --------- Run | Scr Mat Min Mat Distress Signals 5 | . 1 . 4 Communications Jammed . | . . . . Distress Signals . | . . . . Times Spotted 75 | . 23 12 40 Peak Tracking Total 6 | . 4 3 6 Tactical Retreats 10 | . 1 2 7 Traps | -11 -10 -10 -9 ------- Run | Scr Mat Min Mat Traps Triggered 1 | . 1 . . Indirectly . | . . . . Trap Hack Attempts . | . . . . Triggered . | . . . . Disarmed . | . . . . Reprogrammed . | . . . . Reused . | . . . . Traps Extracted . | . . . . Installed . | . . . . Triggered . | . . . . Machines | -11 -10 -10 -9 ---------- Run | Scr Mat Min Mat Machines Disabled 1 | . . 1 . Max in Single Turn 1 | . . 1 . Machines Sabotaged . | . . . . Garrisons Compromised . | . . . . Overloaded Fab Kills . | . . . . Fab Network Shutdowns . | . . . . Hacking | -11 -10 -10 -9 --------- Run | Scr Mat Min Mat Machines Accessed 10 | . 4 . 6 Terminals 9 | . 4 . 5 Fabricators . | . . . . Repair Stations . | . . . . Recycling Units . | . . . . Scanalyzers 1 | . . . 1 Garrison Access . | . . . . Total Hacks 35 | . 8 . 27 Successful 20 | . 4 . 16 Failed 15 | . 4 . 11 Catastrophic 1 | . . . 1 Database Lockouts . | . . . . Manual 28 | . 8 . 20 Terminals 28 | . 8 . 20 Fabricators . | . . . . Repair Stations . | . . . . Recycling Units . | . . . . Scanalyzers 7 | . . . 7 Garrison Access . | . . . . Terminal Hacks 11 | . 3 . 8 Part Schematic 1 | . . . 1 Branch Access Points 2 | . 1 . 1 Unreport Threat 1 | . . . 1 Recall Reinforcements 1 | . . . 1 Zone Layout 6 | . 2 . 4 Fabricator Hacks . | . . . . Repair Station Hacks . | . . . . Recycling Unit Hacks . | . . . . Scanalyzer 6 | . . . 6 Insert Component 3 | . . . 3 Analyze 3 | . . . 3 Garrison Access Hacks . | . . . . Unauthorized Hacks 3 | . 1 . 2 Terminals 3 | . 1 . 2 Track 2 | . 1 . 1 Operators 1 | . . . 1 Fabricators . | . . . . Repair Stations . | . . . . Recycling Units . | . . . . Scanalyzers . | . . . . Garrison Access . | . . . . Data Cores Recovered 1 | . 1 . . Used . | . . . . Hacking Detections 8 | . 2 . 6 Full Trace Events . | . . . . Feedback Events . | . . . . Feedback Blocked . | . . . . Robot Schematics Acquired . | . . . . Robots Built . | . . . . Matter . | . . . . Time . | . . . . Total Robot Build Rating . | . . . . Part Schematics Acquired 4 | . . . 4 Parts Built . | . . . . Matter . | . . . . Time . | . . . . Total Part Build Rating . | . . . . Parts Repaired . | . . . . Time . | . . . . Parts Recycled . | . . . . Recycled Matter . | . . . . Retrieved Matter . | . . . . Retrieved Components . | . . . . Parts Scanalyzed 3 | . . . 3 Part Schematics Acquired 3 | . . . 3 Parts Damaged . | . . . . Bothacking | -11 -10 -10 -9 ------------ Run | Scr Mat Min Mat Used RIF Installer . | . . . . Robots Hacked . | . . . . Non-combat . | . . . . Combat . | . . . . Robot Hacks Applied . | . . . . Relay Couplers Released . | . . . . Robots Rewired . | . . . . Allies Hacked . | . . . . Hacks Repelled . | . . . . Allies | -11 -10 -10 -9 -------- Run | Scr Mat Min Mat Total Allies . | . . . . Largest Group . | . . . . Highest-Rated Group . | . . . . Highest-Rated Ally . | . . . . Total Orders . | . . . . Ally Attacks . | . . . . Total Damage . | . . . . Kills . | . . . . Allies Corrupted . | . . . . Allies Melted . | . . . . Intel | -11 -10 -10 -9 ------- Run | Scr Mat Min Mat Robot Analysis Total . | . . . . Derelict Logs Recovered 1 | . . 1 . Drone Launches . | . . . . Drone Recoveries . | . . . . Exploration | -11 -10 -10 -9 ------------- Run | Scr Mat Min Mat Turns Passed 3401 | 84 1218 900 1199 Spaces Moved 1694 | 50 644 511 489 Core 5 | 5 . . . Treads 1689 | 45 644 511 489 Legs . | . . . . Wheels . | . . . . Hover . | . . . . Flight . | . . . . Fastest Speed 50 | 50 160 160 160 Average Speed 159 | 149 160 160 160 Slowest Speed 160 | 160 160 160 160 Overloaded Moves . | . . . . Propulsion Burnouts . | . . . . Robots Hopped . | . . . . Cave-ins Triggered . | . . . . Exploration Rate (%) 62 | 4 95 99 51 Regions Visited 3 Branch Regions 1 Pre-discovered Areas . | . . . . Known Exits Taken 2 | . 1 1 . Unknown Exits Taken 1 | 1 . . . Scrap Searched 2 | . . 2 . Spaces Dug 21 | . 1 . 20 Terrain Destroyed 82 | . 1 8 73 Melee 1 | . 1 . . Projectile . | . . . . AOE 81 | . . 8 73 Terrain Rammed . | . . . . Walls Destroyed . | . . . . Machines Disabled . | . . . . Actions | -11 -10 -10 -9 --------- Run | Scr Mat Min Mat Total 2111 | 57 754 566 734 Wait 161 | . 45 19 97 Move 1691 | 49 643 510 489 Hop . | . . . . Pick Up 23 | 2 9 5 7 Fast Attach 13 | 6 3 . 4 Attach 10 | . 1 1 8 Detach 2 | . 1 . 1 Swap 21 | . 3 5 13 Drop 21 | . 3 7 11 Fire 165 | . 44 19 102 Melee 2 | . 2 . . Ram . | . . . . Kick . | . . . . Crush 2 | . . . 2 Escape Stasis . | . . . . Rewire . | . . . . Trap . | . . . . Miscellaneous . | . . . . Route ------- -11/Scrapyard -10/Materials (discovered 5 exits: *Mat x3 / *Min x2) -10/Mines (discovered 2 exits: *Mat x2) -9/Materials (discovered 3 exits: [*Mat] / Min / Sto) History --------- Turn | Location | Event 9 | -11/Scrapyard | Discovered new exit (range 16) 85 | -11/Scrapyard | Entered Materials 294 | -10/Materials | Discovered new exit (range 13) 314 | -10/Materials | Build established: Mutant 314 | -10/Materials | Identified exit to Mines 577 | -10/Materials | Discovered new exit (range 5) 771 | -10/Materials | Discovered new exit (range 5) 1303 | -10/Materials | Entered Mines 1437 | -10/Mines | Identified exit to Materials 1832 | -10/Mines | Received a Rocket Launcher from a helpful Derelict 2053 | -10/Mines | Discovered exit to Materials (range 9) 2203 | -10/Mines | Entered Materials 2203 | -9/Materials | Evolved 2 slots: Utility x2 2234 | -9/Materials | Identified exit to Mines 2234 | -9/Materials | Identified exit to Storage 2581 | -9/Materials | Build established: Scavenger-Mutant 2709 | -9/Materials | Discovered new exit (range 5) 3402 | -9/Materials | Self-destructed Last Messages --------------- >>Recall(Reinforcements) Establishing remote squad link... Recalled reinforcement squad MBC9IAJ347. >>Alert(Purge) Purged threat record, alert level lowered. 03302_ W-16 Scout sends out distress signal. 03321_ U-05 Engineer builds a Door. 03323_ G-34 Mercenary destroyed. 03335_ U-05 Engineer builds a Door. 03337_ K-01 Serf collects debris. 03347_ Slammed into U-05 Engineer. 03348_ K-01 Serf collects debris. 03355_ A-02 Transporter suffers critical hit. 03355_ Destroyed Lgt. Treads. 03384_ O-16 Technician sends out distress signal. 03384_ O-16 Technician: "IFF HANDSHAKE FAILED. SECURING TERMINAL." 03387_ ALERT: Hostiles spotted, dispatching reinforcements to Terminal M003. 03389_ Destroyed Lgt. Ion Engine. 03389_ S-10 Pest destroyed. Map ----- +----------------------------------------------------+ | ?????????????????????????????? ??? #??????????? | | ?????????????????????????????? ??? #??????????? | | ?????????????????????????????? ? #???? ????? | | ????????????????????????????o? """ #### ?????? | | ????????????????????????????? """ ??????? | | ?????????????????????????????? """ ???????? | | ?????????????????????????????? ????? | | ??????????????????????????????? ??????? | | ???????????????????????????????? #???????? | | ?????????????????????????######## #???????? | | ?????????????????????????# !#% #???????? | | ?????????????????????????# =+* #???????? | | ?????????????????????????# %#[ #????????#### | | ?????????????????????????# ?[# #????????# | | ?????????????????????????# # ########## | | ?????????????????????????# # T # | | ?????????????????????????#####+## # | | ?????????????????????????????# ## + "" | | ??????????????????? #???????# ## # "" | | ??????????????????? ######### ###### # "" | | ??????????????????? ?# "T" # #????#? # | | ??????????????????? +o # #????# ##+# | | ?????????????????# ? # * # ###### | | ?????????????????# #### ### # T # | | ?????????????????# # # # | | ?????????? @ # # #### # | | ??????????s [ # # #??# # | | ?????????? * + # #??# # | | ???????????# #### #### # " ####"# | | ?????????????? ###??# # "" ## *% | | ?????????????# """ ####????# # "" ## | | ?????????????# """ ????????# # """ ## | | ?????????????# """ #????########## "" ## [ | | ?????????????#???? #????# T # """ ## | | ??????????????????""" #????# # """ ## | | ??????????????????""" #???##[ # """ ###+## | | ???????????????????"" #???# ! # " | | ??????????????????? #???##* + | | ???????????????????####????#""" # | | ???????????????????????????#""" ! #########+#### | | ???????????????????????????#""" #???## | | ???????????????????????????# #???# ! | | ???????????????????????????##########???## | | ?????????????????????????????????????????# """ | | ?????????????????????????????????????????# """ | | ?????????????????????????????????????????# """ | | ?????????????????????????????????????????# """ | | ?????????????????????????????????????????# """ | | ?????????????????????????????????????????# | | ??????????????????????????????????????????????#### | +----------------------------------------------------+ Best States ------------- Heat Dissipation 38 Energy Generation 18 Energy Capacity 265 Matter Stores 300 Matter Capacity 300 Sight Range 16 Robot Scan Range 16 Terrain Scan Density 10 Armor Coverage 300 Evasion (%) 40 Recoil Reduction 2 Item Schematics ----------------- Hcp. Storage Unit | -9/Materials | Hacked Adv. Sensor Array | -9/Materials | Scanalyzed Hacking Suite | -9/Materials | Scanalyzed Rocket Launcher | -9/Materials | Scanalyzed Robot Schematics ------------------ None Fabricated ------------ Nothing Alien Tech Used ----------------- None Achievements -------------- None Challenges ------------ None Game ------ Seed MasterLargeRay Manual? 0 Play Time 00:19:42 Cumulative 113.5 hours Start 2020.09.14 @ 17:46:00 End 2020.09.14 @ 18:06:32 Sessions 1 Manual Loads 0 Difficulty Rogue Special Mode None Game No. 138 Rogue 51 Adventurer 87 Explorer 0 Win Type - Total 4 Types 3/0/0/1/0/0/0/0/0 Lore% 51 Gallery% 63 Achievement% 55 Wizard Run 0 Options --------- ASCII 0 Keyboard 1 Movement Numpad Keybinds 0 Fullscreen 1 Font 18/Smallcaps Map View 76x50 Tactical HUD 1 Map Filters NONE Filters NONE Steam 1 RUN: 74a69782-7c90-4965-8add-305a2ed6e45c